[Event "Tirnavia Reti Memorial-GM 2022"]
[Site "Trnava"]
[Date "2022.08.12"]
[Round "3.10"]
[White "Leszko, Bence"]
[Black "Konyves, Almos"]
[Result "1/2-1/2"]
[ECO "A11"]
[WhiteElo "2241"]
[BlackElo "2229"]
[Annotator "TA"]
[PlyCount "63"]
[EventDate "2022.08.10"]
[EventType "tourn"]
[EventCountry "SVK"]
[SourceTitle "playchess.com"]
[Source "ChessBase"]
[SourceQuality "1"]
[TimeControl "40/5400+30:1800+30"]

{[%evp 9,63,0,0,0,0,6,-3,-18,10,16,18,16,19,21,9,23,9,2,29,33,44,40,45,23,37,25,33,25,29,0,0,0,0,-13,-28,-50,-51,-48,-30,-52,-51,-39,-44,-40,-36,-31,-50,-27,-29,-42,0,0,0,0,0,0]} 1. Nf3 {[%emt 0:07:45]} d5 {[%emt 0:00:48]} 2. g3 {[%emt 0:00:09]} c6 {[%emt 0:00:18]} 3. Bg2 {[%emt 0:00:10]} Bg4 {[%emt 0:00:16]} 4. c4 {[%emt 0:00:08]} e6 {[%emt 0:02:44]} 5. Ne5 {[%emt 0:01:13]} Bf5 {[%emt 0:01:06]} 6. O-O {[%emt 0:02:14] A11: English Opening: 1...c6.} Nf6 {[%emt 0:07:23]} 7. cxd5 {[%emt 0:00:27]} exd5 {[%emt 0:00:22]} 8. d4 {[%emt 0:00:47]} Bd6 {[%emt 0:05:02]} 9. Nc3 {[%emt 0:01:35]} Nbd7 {[%emt 0:02:49]} 10. Bf4 {[%emt 0:02:26][%cal Oe5c6] [#] aiming for Nxc6!} Qe7 {[%emt 0:02:45][%cal Rd7e5]} 11. Nxd7 {[%emt 0:00:07]} Qxd7 {[%emt 0:01:04]} 12. Bxd6 {[%emt 0:04:20]} Qxd6 {[%emt 0:00:05]} 13. f3 {[%emt 0:00:17]} Qd7 {[%emt 0:18:50]} 14. e4 {[%emt 0:01:34] [#]} Be6 $146 {[%emt 0:01:46]} ({Predecessor:} 14... dxe4 15. fxe4 Bh3 16. Qd3 Bxg2 17. Kxg2 O-O 18. Rad1 Rad8 19. a3 Qg4 20. Rf4 Qg6 {1-0 (46) Stefanov,J-Rautenstrauch,H Krakow 1964}) 15. e5 {[%emt 0:00:46]} Ng8 {[%emt 0:00:06]} 16. b4 {[%emt 0:01:03]} Ne7 {[%emt 0:00:52]} 17. Qd3 {[%emt 0:02:19]} Bf5 {[%emt 0:19:08]} 18. Qe2 {[%emt 0:00:28]} O-O {[%emt 0:05:51]} 19. Rae1 {[%emt 0:03:45]} (19. a4) 19... b5 {[%emt 0:07:30]} 20. g4 {[%emt 0:06:48]} Be6 {[%emt 0:00:06][%cal Oh7h5]} 21. h3 {[%emt 0:00:53]} a5 {[%emt 0:03:25]} 22. a3 {[%emt 0:02:01]} h5 {[%emt 0:01:23]} 23. Qd2 {[%emt 0:01:46]} hxg4 {[%emt 0:01:59]} 24. fxg4 {[%emt 0:01:04]} Ng6 {[%emt 0:01:05]} 25. Ne2 {[%emt 0:01:54]} axb4 {[%emt 0:01:04]} 26. axb4 {[%emt 0:00:00]} Ra3 {[%emt 0:00:10]} 27. Ra1 {[%emt 0:03:22]} Rfa8 {[%emt 0:00:05]} 28. Rxa3 {[%emt 0:01:23]} Rxa3 {[%emt 0:00:04]} 29. Rf3 {[%emt 0:02:20]} Qa7 {[%emt 0:03:13] Hoping for ...Rxf3.} 30. Rxa3 {[%emt 0:01:13] The position is equal.} Qxa3 {[%emt 0:00:03]} 31. Qc3 {[%emt 0:00:15]} Qa2 {[%emt 0:01:32]} 32. Nc1 {[%emt 0:00:11] Weighted Error Value: White=0.04 (flawless) /Black=0.05 (flawless)} 1/2-1/2

[Event "Tirnavia Reti Memorial-GM 2022"]
[Site "Trnava"]
[Date "2022.08.13"]
[Round "4.1"]
[White "Malinovsky, Karel"]
[Black "Pechac, Jergus"]
[Result "1/2-1/2"]
[ECO "C60"]
[WhiteElo "2463"]
[BlackElo "2594"]
[Annotator "ChessBase"]
[PlyCount "50"]
[EventDate "2022.08.10"]
[EventType "tourn"]
[EventCountry "SVK"]
[SourceTitle "playchess.com"]
[Source "ChessBase"]
[SourceQuality "1"]
[TimeControl "40/5400+30:1800+30"]

1. e4 {[%emt 0:00:05]} e5 {[%emt 0:00:06]} 2. Nf3 {[%emt 0:00:05]} Nc6 {[%emt 0:00:06]} 3. Bb5 {[%emt 0:00:06]} Nge7 {[%emt 0:00:06]} 4. Nc3 {[%emt 0:01:07]} Ng6 {[%emt 0:00:06]} 5. d4 {[%emt 0:00:18]} Nxd4 {[%emt 0:00:05]} 6. Nxd4 {[%emt 0:00:08]} exd4 {[%emt 0:00:04]} 7. Qxd4 {[%emt 0:00:09]} c6 {[%emt 0:00:04]} 8. Be2 {[%emt 0:00:36]} Qb6 {[%emt 0:00:06]} 9. Qd3 {[%emt 0:00:37]} Be7 {[%emt 0:00:06]} 10. O-O {[%emt 0:00:42]} O-O {[%emt 0:00:06]} 11. a4 {[%emt 0:01:08]} d6 {[%emt 0:00:06]} 12. a5 {[%emt 0:00:48]} Qc7 {[%emt 0:00:06]} 13. f4 {[%emt 0:04:29]} Bd7 {[%emt 0:00:07]} 14. Be3 {[%emt 0:01:38]} Rfe8 {[%emt 0:00:06]} 15. Qc4 {[%emt 0:03:30]} Qc8 {[%emt 0:00:08]} 16. Qb3 {[%emt 0:11:08]} Be6 {[%emt 0:00:11]} 17. Bc4 {[%emt 0:04:34]} Bxc4 {[%emt 0:08:05]} 18. Qxc4 {[%emt 0:00:06]} Bf6 {[%emt 0:00:06]} 19. Bd4 {[%emt 0:10:11]} d5 {[%emt 0:00:07]} 20. exd5 {[%emt 0:03:19]} cxd5 {[%emt 0:00:00]} 21. Qd3 {[%emt 0:13:52]} Bxd4+ {[%emt 0:00:01]} 22. Qxd4 {[%emt 0:00:30]} Ne7 {[%emt 0:00:30]} 23. Nxd5 {[%emt 0:00:30]} Nxd5 {[%emt 0:00:13]} 24. Qxd5 {[%emt 0:00:06]} Qxc2 {[%emt 0:00:09]} 25. Rac1 {[%emt 0:04:00]} Qxb2 {[%emt 0:00:46]} 1/2-1/2

[Event "Tirnavia Reti Memorial-GM 2022"]
[Site "Trnava"]
[Date "2022.08.13"]
[Round "4.2"]
[White "Pacher, Milan"]
[Black "Farkas, Gabor"]
[Result "1-0"]
[ECO "C77"]
[WhiteElo "2399"]
[BlackElo "2335"]
[Annotator "RC"]
[PlyCount "77"]
[EventDate "2022.08.10"]
[EventType "tourn"]
[EventCountry "SVK"]
[SourceTitle "playchess.com"]
[Source "ChessBase"]
[SourceQuality "1"]
[TimeControl "40/5400+30:1800+30"]

1. e4 {[%emt 0:00:03]} e5 {[%emt 0:00:13]} 2. Nf3 {[%emt 0:00:03]} Nc6 {[%emt 0:00:06]} 3. Bb5 {[%emt 0:00:06]} a6 {[%emt 0:00:04]} 4. Ba4 {[%emt 0:00:04]} Nf6 {[%emt 0:00:06]} 5. Nc3 {[%emt 0:00:17]} b5 {[%emt 0:01:44]} 6. Bb3 {[%emt 0:00:05]} Be7 {[%emt 0:03:09]} 7. d3 {[%emt 0:00:16]} d6 {[%emt 0:02:40]} 8. a4 {[%emt 0:01:22]} Na5 {[%emt 0:08:22]} 9. axb5 {[%emt 0:05:23]} Nxb3 {[%emt 0:00:24]} 10. cxb3 {[%emt 0:00:03]} Bb7 {[%emt 0:05:03]} 11. O-O {[%emt 0:02:09]} axb5 {[%emt 0:00:58]} 12. Rxa8 {[%emt 0:00:07]} Qxa8 {[%emt 0:01:20]} 13. Nxb5 {[%emt 0:00:05]} O-O {[%emt 0:00:48]} 14. Bg5 {[%emt 0:03:57]} Qa5 {[%emt 0:02:02]} 15. Na3 {[%emt 0:00:05]} Ba6 {[%emt 0:03:06]} 16. Nc4 {[%emt 0:07:32]} Qb4 {[%emt 0:02:15]} 17. Bd2 {[%emt 0:01:56]} Qb5 {[%emt 0:00:14]} 18. Bc3 {[%emt 0:00:09]} Nd7 {[%emt 0:02:50]} 19. d4 {[%emt 0:10:40]} Rb8 {[%emt 0:09:03]} 20. dxe5 {[%emt 0:00:59]} Nxe5 {[%emt 0:09:16]} 21. Nfxe5 {[%emt 0:00:19]} dxe5 {[%emt 0:00:08]} 22. Bxe5 {[%emt 0:00:09]} Qxb3 {[%emt 0:00:12]} 23. Qxb3 {[%emt 0:00:05]} Rxb3 {[%emt 0:00:08]} 24. Rc1 {[%emt 0:00:06]} Bf6 {[%emt 0:03:48]} 25. Bxf6 {[%emt 0:18:21]} gxf6 {[%emt 0:00:03]} 26. Ne3 {[%emt 0:00:15]} Bb7 {[%emt 0:01:28]} 27. Rc4 {[%emt 0:00:39]} Rxb2 {[%emt 0:00:10]} 28. f3 {[%emt 0:00:07]} Bc8 {[%emt 0:04:10]} 29. Nd5 {[%emt 0:02:23]} Kg7 {[%emt 0:04:06]} 30. Rxc7 {[%emt 0:00:06]} Be6 {[%emt 0:00:19]} 31. Nf4 {[%emt 0:00:06]} Rb6 {[%emt 0:00:05]} 32. g4 {[%emt 0:00:29]} Bb3 {[%emt 0:00:51]} 33. Kf2 {[%emt 0:00:26]} Bd1 {[%emt 0:01:20]} 34. Rd7 {[%emt 0:02:11]} Ba4 {[%emt 0:00:09]} 35. Rd8 {[%emt 0:00:06]} Ra6 {[%emt 0:01:03]} 36. Kg3 {[%emt 0:00:24]} Bb3 {[%emt 0:01:04]} 37. Nh5+ {[%emt 0:02:39]} Kg6 {[%emt 0:02:55]} 38. Rg8+ {[%emt 0:00:10]} Kh6 {[%emt 0:00:06]} 39. Nxf6 {[%emt 0:00:07]} 1-0

[Event "Tirnavia Reti Memorial-GM 2022"]
[Site "Trnava"]
[Date "2022.08.13"]
[Round "4.3"]
[White "Finek, Vaclav"]
[Black "Czebe, Attila"]
[Result "1/2-1/2"]
[ECO "A27"]
[WhiteElo "2393"]
[BlackElo "2385"]
[Annotator "TA"]
[PlyCount "64"]
[EventDate "2022.08.10"]
[EventType "tourn"]
[EventCountry "SVK"]
[SourceTitle "playchess.com"]
[Source "ChessBase"]
[SourceQuality "1"]
[TimeControl "40/5400+30:1800+30"]

{[%evp 15,64,37,43,29,34,45,52,47,72,29,32,12,45,25,25,0,0,0,0,0,0,0,0,0,0,0,0,0,0,0,0,0,157,150,162,157,172,0,0,0,0,0,0,0,0,-14,-6,-34,0,0,0]} 1. Nf3 {[%emt 0:00:05]} g6 {[%emt 0:00:17]} 2. c4 {[%emt 0:01:33]} Bg7 {[%emt 0:00:06]} 3. d4 {[%emt 0:00:39]} d6 {[%emt 0:00:40]} 4. g3 {[%emt 0:00:37]} e5 {[%emt 0:00:00]} 5. Nc3 {[%emt 0:00:39]} exd4 {[%emt 0:00:00]} 6. Nxd4 {[%emt 0:00:04]} Nc6 {[%emt 0:01:23]} 7. Nxc6 {[%emt 0:00:06]} bxc6 {[%emt 0:00:03]} 8. Bg2 {[%emt 0:00:06]} Ne7 {[%emt 0:00:25]} 9. O-O {[%emt 0:00:07] A27: English Opening: Three Knights Variation.} (9. Bg5 {looks sharper.} Bd7 10. e4 O-O 11. O-O) 9... Be6 {[%emt 0:01:36] [#]} 10. Be3 $146 {[%emt 0:09:34]} (10. Bg5 {keeps more tension.} O-O 11. Qd3 Rb8 12. b3) ({Predecessor:} 10. c5 d5 11. Bf4 Qd7 12. Qd2 h6 13. Rad1 g5 14. Be3 Nf5 15. Qc1 Nxe3 16. Qxe3 O-O {1-0 (38) Rakhmanov,A (2653)-Djordjevic,V (2350) Chess.com INT 2021}) 10... O-O {[%emt 0:02:47]} 11. Bd4 {[%emt 0:00:18] White is slightly better.} f6 {[%emt 0:00:11][%cal Bf7f6,Bf6f5][%mdl 32]} 12. b3 {[%emt 0:08:32] White is more active.} Qd7 {[%emt 0:02:24]} 13. e4 {[%emt 0:03:08]} Bh3 {[%emt 0:07:55]} 14. Qd3 {[%emt 0:12:19]} c5 {[%emt 0:00:30]} 15. Be3 {[%emt 0:00:30]} (15. Bxh3 {feels hotter.} Qxh3 16. Be3 f5 17. Nd5) 15... Bxg2 {[%emt 0:00:30]} 16. Kxg2 {[%emt 0:00:30]} f5 {[%emt 0:00:30]} 17. Rae1 {[%emt 0:00:30]} Bxc3 {[%emt 0:00:44]} 18. Qxc3 {[%emt 0:00:50] Bh6 is the strong threat.} fxe4 {[%emt 0:01:38]} 19. Bh6 {[%emt 0:29:09][%csl Gh6][%cal Rc3g7]} Rf7 {[%emt 0:00:09] Prevents Qg7+. Threatens to win with ...Nf5.} 20. Rxe4 {[%emt 0:00:55]} Nf5 {[%emt 0:00:08]} 21. Bg5 {[%emt 0:02:08]} Qc6 {[%emt 0:25:47]} 22. f3 {[%emt 0:04:22]} Nd4 {[%emt 0:00:18]} 23. Re3 {[%emt 0:01:08]} h6 $2 {[%emt 0:04:36]} ({Black should try} 23... Nf5 $11) 24. Bxh6 $16 {[%emt 0:02:29]} Nf5 {[%emt 0:02:53] [#]} 25. Re6 $1 {[%emt 0:03:05][%cal Og3g4] aiming for g4!} Qd7 {[%emt 0:02:12] [#]} (25... Re8 26. Rxe8+) 26. Rfe1 {[%emt 0:04:58]} Nxh6 $11 {[%emt 0:00:10]} 27. Rxg6+ {[%emt 0:01:19]} Kh7 {[%emt 0:00:02]} 28. Ree6 {[%emt 0:02:08] The board is on fire.} Nf5 {[%emt 0:00:08] And now ...Re8 would win.} 29. Qd3 {[%emt 0:03:27]} Re8 {[%emt 0:05:11]} 30. Qe4 {[%emt 0:04:48]} Rxe6 {[%emt 0:01:16]} 31. Rxe6 {[%emt 0:00:04] Hoping for g4.} Kg7 {[%emt 0:03:07]} (31... Kg8 $5 {[%cal Rf5g7]}) 32. g4 {[%emt 0:01:08]} Ne7 {[%emt 0:16:16] Weighted Error Value: White=0.16 (very precise) /Black=0.21 (precise)} 1/2-1/2

[Event "Tirnavia Reti Memorial-GM 2022"]
[Site "Trnava"]
[Date "2022.08.13"]
[Round "4.4"]
[White "Stevik, Patrik"]
[Black "Velicka, Petr"]
[Result "1/2-1/2"]
[ECO "A11"]
[WhiteElo "2126"]
[BlackElo "2384"]
[Annotator "TA"]
[PlyCount "127"]
[EventDate "2022.08.10"]
[EventType "tourn"]
[EventCountry "SVK"]
[SourceTitle "playchess.com"]
[Source "ChessBase"]
[SourceQuality "1"]
[TimeControl "40/5400+30:1800+30"]

{[%evp 9,127,17,20,24,19,16,27,34,32,32,31,22,27,21,32,34,30,16,19,0,0,-37,-26,-14,-12,-21,0,-21,-17,-101,-101,-106,-106,-98,-98,-98,-98,-98,-99,-103,-103,-104,-102,-98,-98,-98,-95,-96,-86,-86,-86,-86,-86,-86,-86,-86,-86,-86,-86,-118,-105,-112,-86,-86,-64,-125,-86,-86,-86,-86,-86,-86,-86,-99,-108,-123,-86,-123,-86,-86,-86,-86,-86,-86,-86,-118,-109,-109,-109,-112,-109,-125,-125,-141,0,0,0,0,0,0,0,0,0,0,0,0,0,0,0,0,0,0,0,0,0,0,0,0,0,0]} 1. c4 {[%emt 0:00:17]} c6 {[%emt 0:00:35]} 2. Nf3 {[%emt 0:00:22]} d5 {[%emt 0:00:08]} 3. e3 {[%emt 0:00:03]} Nf6 {[%emt 0:00:41]} 4. Nc3 {[%emt 0:00:27]} Bg4 {[%emt 0:02:27]} 5. Qb3 {[%emt 0:00:35]} Qb6 {[%emt 0:00:25]} 6. Qxb6 {[%emt 0:02:51] A11: English Opening: 1...c6.} (6. Ne5 {keeps more tension.} Qxb3 7. axb3 Bf5 8. cxd5 Nxd5 9. Bc4) 6... axb6 {[%emt 0:00:13]} 7. cxd5 {[%emt 0:00:05]} Bxf3 {[%emt 0:01:17]} (7... Nxd5 {is interesting.} 8. Nxd5 cxd5 9. Ne5 Be6) 8. gxf3 {[%emt 0:00:03] White has an edge.} Nxd5 {[%emt 0:00:10]} 9. Nxd5 {[%emt 0:02:05]} cxd5 {[%emt 0:00:08]} 10. Bb5+ {[%emt 0:00:29]} Nc6 {[%emt 0:00:09]} 11. b3 {[%emt 0:01:58]} e6 {[%emt 0:01:39]} 12. Bb2 {[%emt 0:01:22]} Rg8 {[%emt 0:00:32] [#]} 13. Rg1 $146 {[%emt 0:02:02]} ({Predecessor:} 13. a3 g6 14. Ke2 Kd7 15. b4 Bg7 16. d4 Rgc8 17. Rac1 Kd8 18. Bd3 Ne7 19. Kd2 Rxc1 20. Rxc1 {½-½ (25) Sunilduth Lyna,N (2575)-Bluebaum,M (2611) Zuerich 2018}) 13... g6 {[%emt 0:00:40]} 14. Ke2 {[%emt 0:05:23]} Kd7 {[%emt 0:02:38]} 15. f4 {[%emt 0:05:52]} Ba3 {[%emt 0:02:48]} 16. Bc3 {[%emt 0:07:56]} Ke7 {[%emt 0:01:55]} 17. Rab1 {[%emt 0:03:51]} Bb4 {[%emt 0:15:59]} 18. Bxc6 {[%emt 0:09:20]} Bxc3 {[%emt 0:02:11]} 19. Ba4 {[%emt 0:05:36]} (19. Bxd5 $11 {keeps the balance.} Rxa2 20. Bxb7) 19... Bb4 $17 {[%emt 0:00:44]} 20. Rgc1 {[%emt 0:01:06]} Bd6 {[%emt 0:00:12] [#] Prevents Rc7+. ...Ra5 is the strong threat.} 21. Bb5 {[%emt 0:10:29]} Rxa2 {[%emt 0:00:38]} 22. Ra1 {[%emt 0:00:28]} Rga8 {[%emt 0:10:34]} 23. Rxa2 {[%emt 0:01:30]} Rxa2 {[%emt 0:00:11][%mdl 4096] Endgame KRB-KRB} 24. Ba4 {[%emt 0:06:27]} Kd8 {[%emt 0:02:46]} 25. Kd1 {[%emt 0:07:36]} Ba3 {[%emt 0:01:24]} 26. Rc2 {[%emt 0:01:02]} Ra1+ {[%emt 0:04:40]} 27. Ke2 {[%emt 0:00:06]} Bd6 {[%emt 0:03:14]} 28. d4 {[%emt 0:04:22]} h5 {[%emt 0:04:36][%cal Og6g5]} 29. Kf3 {[%emt 0:01:07]} Rb1 {[%emt 0:01:38]} 30. Ra2 {[%emt 0:05:58]} b5 {[%emt 0:01:06]} 31. Bxb5 {[%emt 0:00:31]} Rxb3 {[%emt 0:00:09]} 32. Ra8+ {[%emt 0:00:00]} Ke7 {[%emt 0:00:20]} 33. Ba4 {[%emt 0:00:21]} Rb2 {[%emt 0:07:04]} 34. Re8+ {[%emt 0:02:19]} Kf6 {[%emt 0:00:13]} 35. Rd8 {[%emt 0:01:32]} Bb4 {[%emt 0:01:31] White must now prevent ...Be1.} 36. Rc8 {[%emt 0:07:12]} Be7 {[%emt 0:07:15]} 37. Rb8 {[%emt 0:01:05]} (37. Rc3 $15) 37... Rb4 {[%emt 0:00:22]} 38. Ra8 {[%emt 0:02:58]} Bd6 {[%emt 0:00:22]} 39. Be8 {[%emt 0:00:30]} Ke7 {[%emt 0:04:00]} 40. h3 {[%emt 0:01:48]} Rb2 {[%emt 0:03:40]} 41. Ba4 {[%emt 0:02:12]} Ra2 {[%emt 0:00:46]} 42. Re8+ {[%emt 0:00:34]} Kf6 {[%emt 0:00:09]} 43. Bb5 {[%emt 0:03:47]} Rb2 {[%emt 0:06:10]} 44. Bd3 {[%emt 0:03:14]} b5 {[%emt 0:00:44][%cal Bb7b5,Bb5b4,Bb4b3][%mdl 32]} 45. Rc8 {[%emt 0:00:39]} b4 {[%emt 0:00:25]} 46. Rc2 {[%emt 0:00:06]} Rb3 {[%emt 0:00:17]} 47. Ke2 {[%emt 0:02:05]} Ra3 {[%emt 0:00:54]} 48. Rc6 {[%emt 0:01:07]} Be7 {[%emt 0:07:30]} 49. Rb6 {[%emt 0:03:22]} b3 {[%emt 0:03:45]} 50. Kf3 {[%emt 0:00:37]} Bd8 {[%emt 0:01:41]} ({Much worse is} 50... b2 $6 51. Bc2 $11) 51. Rb7 {[%emt 0:02:25] [#]} Ba5 {[%emt 0:05:55]} ({Worse is} 51... b2 52. Bb1 $11) (51... Kg7 $1 $17 {And now ...Ba5 would win.} 52. Be2 Bh4) 52. Bb5 $1 $11 {[%emt 0:04:47] The position is equal.} Bb4 {[%emt 0:05:41]} 53. Be8 {[%emt 0:00:08][%csl Ge8,LRb4,LRf7][%cal Rb7f7]} Be7 {[%emt 0:00:06]} 54. Kg2 {[%emt 0:01:34]} Ra2 {[%emt 0:01:07]} 55. Rxb3 {[%emt 0:00:28]} Kg7 {[%emt 0:00:10]} 56. Kg3 {[%emt 0:02:13]} Kf8 {[%emt 0:01:56]} 57. Bd7 {[%emt 0:00:50]} Bd8 {[%emt 0:01:50]} 58. Bb5 {[%emt 0:01:27]} Ba5 {[%emt 0:03:46]} 59. Kf3 {[%emt 0:00:51]} Kg7 {[%emt 0:00:51]} 60. Rb1 {[%emt 0:00:36]} Bd8 {[%emt 0:01:46]} 61. Kg3 {[%emt 0:00:30]} g5 {[%emt 0:00:28]} 62. fxg5 {[%emt 0:00:30]} Bxg5 {[%emt 0:00:10]} 63. Be8 {[%emt 0:01:16] Strongly threatening Rb7.} Be7 {[%emt 0:00:38]} 64. Bb5 {[%emt 0:00:39] Weighted Error Value: White=0.08 (flawless) /Black=0.06 (flawless)} 1/2-1/2

[Event "Tirnavia Reti Memorial-GM 2022"]
[Site "Trnava"]
[Date "2022.08.13"]
[Round "4.5"]
[White "Sahidi, Samir"]
[Black "Jablonicky, Martin"]
[Result "1/2-1/2"]
[ECO "A43"]
[WhiteElo "2462"]
[BlackElo "2343"]
[Annotator "RC"]
[PlyCount "109"]
[EventDate "2022.08.10"]
[EventType "tourn"]
[EventCountry "SVK"]
[SourceTitle "playchess.com"]
[Source "ChessBase"]
[SourceQuality "1"]
[TimeControl "40/5400+30:1800+30"]

1. d4 {[%emt 0:00:19]} Nf6 {[%emt 0:00:13]} 2. Nf3 {[%emt 0:00:29]} g6 {[%emt 0:00:30]} 3. g3 {[%emt 0:00:58]} Bg7 {[%emt 0:00:06]} 4. Bg2 {[%emt 0:00:05]} O-O {[%emt 0:00:05]} 5. O-O {[%emt 0:00:56]} c5 {[%emt 0:00:29]} 6. d5 {[%emt 0:01:58]} d6 {[%emt 0:00:09]} 7. Nc3 {[%emt 0:02:00]} Na6 {[%emt 0:01:55]} 8. Re1 {[%emt 0:01:34]} Rb8 {[%emt 0:00:13]} 9. a4 {[%emt 0:02:33]} e5 {[%emt 0:01:41]} 10. dxe6 {[%emt 0:04:27]} Bxe6 {[%emt 0:01:15]} 11. Bf4 {[%emt 0:07:10]} Ne8 {[%emt 0:00:22]} 12. Ng5 {[%emt 0:05:57]} Qb6 {[%emt 0:01:36]} 13. Qc1 {[%emt 0:00:50]} Rd8 {[%emt 0:01:00]} 14. a5 {[%emt 0:04:13]} Qc7 {[%emt 0:00:09]} 15. Rd1 {[%emt 0:05:18]} Qe7 {[%emt 0:01:57]} 16. Qe3 {[%emt 0:02:36]} Nb4 {[%emt 0:01:43]} 17. Rd2 {[%emt 0:07:45]} Bd4 {[%emt 0:02:55]} 18. Qf3 {[%emt 0:01:16]} d5 {[%emt 0:02:48]} 19. Na4 {[%emt 0:04:28]} Bf6 {[%emt 0:01:27]} 20. h4 {[%emt 0:01:15]} Nc6 {[%emt 0:00:15]} 21. Qa3 {[%emt 0:03:54]} Nxa5 {[%emt 0:07:02]} 22. Qxc5 {[%emt 0:01:01]} Nc4 {[%emt 0:01:29]} 23. Qxe7 {[%emt 0:01:48]} Bxe7 {[%emt 0:00:07]} 24. Rdd1 {[%emt 0:00:18]} Bf6 {[%emt 0:06:20]} 25. Nxe6 {[%emt 0:07:42]} fxe6 {[%emt 0:01:19]} 26. Nc5 {[%emt 0:00:04]} Ng7 {[%emt 0:00:46]} 27. Rxa7 {[%emt 0:03:24]} Nxb2 {[%emt 0:00:25]} 28. Rf1 {[%emt 0:01:57]} Bd4 {[%emt 0:03:44]} 29. Rxb7 {[%emt 0:00:15]} Bxc5 {[%emt 0:01:12]} 30. Rxb2 {[%emt 0:03:29]} Nh5 {[%emt 0:00:46]} 31. Be5 {[%emt 0:00:51]} Rf5 {[%emt 0:00:48]} 32. Rb8 {[%emt 0:00:08]} Rxb8 {[%emt 0:00:17]} 33. Bxb8 {[%emt 0:00:41]} Rf8 {[%emt 0:00:05]} 34. g4 {[%emt 0:07:19]} Rxb8 {[%emt 0:06:38]} 35. gxh5 {[%emt 0:00:07]} Rb2 {[%emt 0:03:54]} 36. hxg6 {[%emt 0:00:21]} hxg6 {[%emt 0:00:06]} 37. Rc1 {[%emt 0:05:26]} Be7 {[%emt 0:00:09]} 38. e4 {[%emt 0:01:39]} d4 {[%emt 0:05:34]} 39. e5 {[%emt 0:00:24]} Bxh4 {[%emt 0:05:58]} 40. Be4 {[%emt 0:00:17]} Rb5 {[%emt 0:00:06]} 41. Rd1 {[%emt 0:30:12]} Rxe5 {[%emt 0:30:04]} 42. Rxd4 {[%emt 0:00:28]} Be7 {[%emt 0:01:17]} 43. Kf1 {[%emt 0:00:56]} Kf7 {[%emt 0:00:15]} 44. Ke2 {[%emt 0:00:10]} Kf6 {[%emt 0:00:31]} 45. Ra4 {[%emt 0:00:32]} g5 {[%emt 0:02:29]} 46. f3 {[%emt 0:02:07]} Rc5 {[%emt 0:01:15]} 47. Ra6 {[%emt 0:01:08]} Rc3 {[%emt 0:04:32]} 48. Kd2 {[%emt 0:01:10]} Ra3 {[%emt 0:03:29]} 49. Rb6 {[%emt 0:01:00]} Bc5 {[%emt 0:05:00]} 50. Rc6 {[%emt 0:01:26]} Bb4+ {[%emt 0:00:35]} 51. c3 {[%emt 0:00:15]} Rxc3 {[%emt 0:01:29]} 52. Rxc3 {[%emt 0:01:41]} Ke5 {[%emt 0:00:05]} 53. Kd3 {[%emt 0:00:25]} Bxc3 {[%emt 0:00:05]} 54. Kxc3 {[%emt 0:00:04]} g4 {[%emt 0:00:08]} 55. Kd3 {[%emt 0:00:14]} 1/2-1/2